Cogmind - Beta 12 --- EXPLORER MODE // 2023.03.08 @ 16:45:37 Player: viper Result: Self-destructed Performance ------------- Evolutions (5) 2500 Regions Visited (13) 2600 Robots Destroyed (191) 955 Value Destroyed (7109) 7109 Prototype IDs (214) 4280 Alien Tech Used (0) 0 Bonus (4297) 4297 TOTAL SCORE: 21741 Bonus ------- High Alert Combat Kills 187 Follower Combat Kills 125 Entered DSFs 500 Met Data Miner 300 Used Data Conduit 3000 Pursued by Intercept 500 Friendly Fire -315 Cogmind --------- Core Integrity 305/1000 Matter 300/300 Energy 815/815 System Corruption 12% Temperature Cool (0) Movement Walking (130) Location -5/Extension Parts ------- > --- POWER (3) -------- Neutrino Core > --- PROPULSION (4) --- Titanium Leg Titanium Leg Improved Titanium Leg > --- UTILITY (7) ------ Experimental Heat Sink Large Storage Unit Advanced Energy Well > --- WEAPON (4) ------- (None) > --- INVENTORY (15) --- Light Nuclear Core Micro Fission Core Carbon-fiber Leg Improved Carbon-fiber Leg Improved Titanium Leg Improved VSS Leg Peak State ------------ > --- POWER ------------ Micro Nuclear Core Neutrino Core Micro Fission Core > --- PROPULSION ------- Improved Titanium Leg Improved Titanium Leg Improved Titanium Leg Improved Titanium Leg > --- UTILITY ---------- Experimental Heat Sink Large Storage Unit Advanced Energy Well High-capacity Matter Pod Experimental Phase Shifter Power Shielding Improved System Shield > --- WEAPON ----------- KE Penetrator KE Penetrator Hypervelocity Coil Gun Enhanced Coil Gun > --- INVENTORY -------- Light Nuclear Core Micro Fission Core Carbon-fiber Leg Titanium Leg Titanium Leg Titanium Leg Improved Carbon-fiber Leg Improved Titanium Leg Improved Titanium Leg Improved VSS Leg Large Matter Pod Neutron Cannon Hypervelocity Gauss Cannon Mini Grenade Launcher Tiamat Missile Launcher [Rating: 96] Favorites ----------- Power Improved Ion Engine Engine Improved Ion Engine Power Core Micro Nuclear Core Propulsion Improved Titanium Leg Leg Improved Titanium Leg Utility Utility Shielding Device Terrain Scanner Storage Large Storage Unit Processor Transport Network Coupler Hackware Improved System Shield Protection Utility Shielding Weapon Improved Assault Rifle Energy Cannon Neutron Cannon Ballistic Gun Improved Assault Rifle Ballistic Cannon Advanced Assault Cannon Launcher Mini Grenade Launcher Build | -11 -10 -10 -9 -8 -7 -7 -7 -7 -6 -6 -6 -5 -5 ------- Run | Jun Mat Min Mat Mat Fac Low Low Dat Pro Fac DSF Fac Ext Slots Evolved 11 | . 1 . 2 2 2 . . . . 2 . 2 . Power 2 | . 1 . . . . . . . . . . 1 . Propulsion 2 | . . . . . 2 . . . . . . . . Utility 5 | . . . 2 . . . . . . 2 . 1 . Weapon 2 | . . . . 2 . . . . . . . . . Parts Attached 107 | 7 6 . 19 6 20 3 7 1 4 2 6 16 10 Power 21 | 1 2 . 6 . 5 . 1 1 . . 1 3 1 Engine 14 | 1 2 . 5 . 3 . 1 1 . . . 1 . Core 7 | . . . 1 . 2 . . . . . 1 2 1 Reactor . | . . . . . . . . . . . . . . Propulsion 39 | 2 3 . 5 3 14 . 1 . 3 . 4 . 4 Treads . | . . . . . . . . . . . . . . Leg 39 | 2 3 . 5 3 14 . 1 . 3 . 4 . 4 Wheel . | . . . . . . . . . . . . . . Hover . | . . . . . . . . . . . . . . Flight . | . . . . . . . . . . . . . . Utility 17 | 2 . . 3 1 . 2 1 . . 2 . 5 1 Device 7 | . . . 1 . . 2 . . . . . 4 . Storage 5 | 1 . . 1 1 . . . . . 1 . . 1 Processor 1 | . . . 1 . . . . . . . . . . Hackware 1 | . . . . . . . . . . . . 1 . Protection 3 | 1 . . . . . . 1 . . 1 . . . Artifact . | . . . . . . . . . . . . . . Weapon 30 | 2 1 . 5 2 1 1 4 . 1 . 1 8 4 Energy Gun . | . . . . . . . . . . . . . . Energy Cannon 2 | . . . . . . . . . 1 . . . 1 Ballistic Gun 20 | 2 1 . 5 2 1 1 1 . . . 1 6 . Ballistic Cannon 3 | . . . . . . . 2 . . . . . 1 Launcher 5 | . . . . . . . 1 . . . . 2 2 Special Weapon . | . . . . . . . . . . . . . . Impact Weapon . | . . . . . . . . . . . . . . Slashing Weapon . | . . . . . . . . . . . . . . Piercing Weapon . | . . . . . . . . . . . . . . Special Melee Weapon . | . . . . . . . . . . . . . . Unidentified Prototypes 3 | . . . 1 . 1 1 . . . . . . . Parts Lost 40 | . . . 3 . 2 1 5 1 2 . 2 5 19 Power 6 | . . . 1 . 1 . 1 1 . . . . 2 Propulsion 8 | . . . 1 . . . . . 1 . 1 . 5 Utility 8 | . . . . . . . 1 . . . . 2 5 Weapon 18 | . . . 1 . 1 1 3 . 1 . 1 3 7 Highest Loss Streak 18 | . . . 2 . 1 1 5 1 1 . 1 3 18 To Critical Strikes 1 | . . . . . . . . . . . 1 . . Average Slot Usage (%) 99 | . 99 100 99 100 99 99 95 99 98 100 99 99 95 Engine 14 | . 24 25 17 16 10 14 11 13 14 12 10 6 1 Core 2 | . . . 2 . 3 . . . . . 1 9 14 Leg 23 | . 24 25 19 16 28 28 28 28 26 25 24 22 21 Device 6 | . . . 10 8 7 7 8 7 7 6 6 10 9 Storage 13 | . 12 12 10 11 14 14 14 14 14 18 18 16 15 Processor 2 | . . . 10 4 . . . . . . . . . Protection 8 | . 12 12 10 8 7 6 3 7 7 12 12 8 4 Ballistic Gun 20 | . 24 25 20 33 27 27 15 14 12 6 7 15 20 Ballistic Cannon 2 | . . . . . . . 11 14 14 12 10 1 . Naked Turns . | . . . . . . . . . . . . . . Heaviest Build 78 | 19 24 24 43 51 56 59 68 68 69 73 73 78 76 Greatest Support 80 | 20 20 20 20 27 69 69 72 72 72 63 80 80 80 Greatest Overweight (x) 4 | . 1 1 2 2 1 . . . 1 1 4 . 1 Average Overweight (x) . | . 1 1 1 1 . . . . . 1 . . . Largest Inventory Capacity 15 | 10 10 10 15 15 15 15 15 15 15 15 15 15 15 Average Capacity 13 | 7 10 10 10 15 15 15 15 15 15 15 15 15 15 Most Carried 15 | 5 8 8 12 13 15 15 14 14 15 13 15 15 15 Average Carried 11 | 1 6 8 8 11 14 14 11 10 14 12 14 13 14 Final Capacity 15 | 10 10 10 15 15 15 15 15 15 15 15 15 15 15 Final Carried 15 | 5 8 8 12 13 15 14 11 14 14 12 15 15 6 Class Distribution -------------------- 40% | Hacker-Mutant 25% | Hacker-Skirmisher 18% | Scavenger-Tank 13% | Hacker-Tank Dominant Class ---------------- Hacker-Mutant | -10/Materials Hacker-Mutant | -10/Mines Hacker-Mutant | -9/Materials Hacker-Skirmisher | -8/Materials Hacker-Skirmisher | -7/Factory Hacker-Skirmisher | -7/Lower Caves Hacker-Tank | -7/Lower Caves Hacker-Tank | -7/Data Miner Scavenger-Tank | -6/Proximity Caves Scavenger-Tank | -6/Factory Scavenger-Tank | -6/DSF Scavenger-Tank | -5/Factory Hacker-Tank | -5/Extension Resources | -11 -10 -10 -9 -8 -7 -7 -7 -7 -6 -6 -6 -5 -5 ----------- Run | Jun Mat Min Mat Mat Fac Low Low Dat Pro Fac DSF Fac Ext Matter Collected 6139 | 208 716 . 590 310 768 295 181 296 322 84 433 1141 795 Remotely . | . . . . . . . . . . . . . . Salvage Created 8378 | . 809 . 1487 610 1034 409 464 209 223 . 581 1758 794 Parts 437 | . 50 . 99 30 51 16 15 6 14 . 24 92 40 Haulers Intercepted 13 | . 1 . 5 1 2 1 . . . . . 3 . Recyclers Shooed 5 | . 1 . 2 . . . . . . . . 1 1 Parts Field Recycled . | . . . . . . . . . . . . . . Retrieved Matter . | . . . . . . . . . . . . . . Parts Self-Destructed . | . . . . . . . . . . . . . . Prevented . | . . . . . . . . . . . . . . Kills | -11 -10 -10 -9 -8 -7 -7 -7 -7 -6 -6 -6 -5 -5 ------- Run | Jun Mat Min Mat Mat Fac Low Low Dat Pro Fac DSF Fac Ext Combat Hostiles Destroyed 135 | . 15 . 22 9 16 6 12 4 9 . 11 24 7 Guns 112 | . 15 . 22 9 16 6 8 1 5 . 4 20 6 Cannons 15 | . . . . . . . . 3 4 . 7 . 1 AOE 8 | . . . . . . . 4 . . . . 4 . Classes Destroyed 18 | . 5 . 3 . 4 1 2 . 1 . 2 . . Worker 12 | . . . 1 3 2 . . . . . . 4 2 Builder 5 | . . . . . 1 . . . . . . 3 1 Tunneler 1 | . . . . . 1 . . . . . . . . Hauler 13 | . 1 . 5 1 2 1 . . . . . 3 . Recycler 9 | . 1 . 3 1 1 . . . . . . 1 2 Operator 2 | . . . 1 . . . . . . . . 1 . Drone 1 | . . . . . . . . . 1 . . . . Watcher 14 | . 3 . 4 2 1 . . . . . . 4 . Swarmer 31 | . 2 . 3 2 4 . 3 . 6 . 4 7 . Grunt 54 | . 13 . 14 3 5 5 5 . 2 . 4 3 . Brawler 3 | . . . . . . . 2 . . . . 1 . Protector 1 | . . . . . . . 1 . . . . . . Sentry 20 | . . . 5 4 3 . 1 . . . . 3 4 Specialist 2 | . . . . . . . . . . . 2 . . Hunter 7 | . . . . . 3 . . . . . . 3 1 Programmer 6 | . . . . . 1 . . . . . . 4 1 Heavy 1 | . . . . . . . . . . . 1 . . Behemoth 3 | . . . . . . 1 . . . . . 1 1 Enhanced Grunt 4 | . . . . . . . . 4 . . . . . Tracker 1 | . . . . . . . . . . . . 1 . Combat Programmer 1 | . . . . . . . . . . . . 1 . Best Kill Streak 8 | . 5 . 4 5 3 5 8 2 3 . 4 8 7 Combat Bots Only 8 | . 4 . 3 3 3 5 8 2 3 . 4 4 3 Max Kills in Single Turn 3 | . 1 . 1 2 2 1 2 1 1 . 1 3 3 Gunslinging 1 | . . . . . 1 . 1 . . . . . . Exploded 2 | . . . . . . . 2 . . . . 1 . Melee . | . . . . . . . . . . . . . . Uniques/NPCs Destroyed . | . . . . . . . . . . . . . . Combat | -11 -10 -10 -9 -8 -7 -7 -7 -7 -6 -6 -6 -5 -5 -------- Run | Jun Mat Min Mat Mat Fac Low Low Dat Pro Fac DSF Fac Ext Damage Taken 7596 | . 396 . 737 166 518 420 662 476 110 . 358 1509 2244 Core 1118 | . 60 . 130 12 37 50 68 32 . . 34 182 513 Absorbed by Shields 8 | . . . . . . . . . . . . . 8 Redirected to Shielding 110 | . 2 . 7 3 6 2 . . 7 . 18 51 14 Regen/Repaired (Parts) 144 | . 144 . . . . . . . . . . . . Core Remaining (%) 84 | 100 . 76 67 97 . . . . 73 . 96 . . Volleys Fired 434 | . 61 . 116 26 49 23 19 18 11 . 18 74 19 Largest 4 | . 2 . 2 4 4 4 4 4 4 . 4 4 4 Hottest 219 | . 40 . 46 89 92 99 156 159 219 . 219 144 186 Shots Fired 1307 | . 122 . 231 104 194 84 70 72 41 . 71 251 67 Gun 1132 | . 122 . 231 104 194 84 58 36 18 . 26 206 53 Cannon 134 | . . . . . . . 8 36 23 . 45 15 7 Launcher 41 | . . . . . . . 4 . . . . 30 7 Special . | . . . . . . . . . . . . . . Kinetic 1244 | . 122 . 231 104 194 84 66 72 40 . 54 221 56 Thermal 22 | . . . . . . . . . 1 . 17 . 4 Explosive 41 | . . . . . . . 4 . . . . 30 7 Electromagnetic . | . . . . . . . . . . . . . . Robot Hit Streak 42 | . 29 . 26 31 42 38 20 23 9 . 18 32 39 Robot Miss Streak 4 | . 2 . 2 2 2 2 1 1 3 . 2 4 1 Penetration Max 1 | . . . . . . . . 1 . . . 1 1 Secondary Targets 15 | . . . 2 . 3 3 4 . . . . 2 1 Max Gunslinging Chain 1 | . . . 1 . 1 1 1 . . . . 1 1 Shots Hit Robots 985 | . 97 . 186 70 148 71 60 61 19 . 42 177 54 Core Hits 423 | . 41 . 78 30 54 23 28 21 11 . 18 93 26 Critical Kills 6 | . . . 1 . . . . . . . 1 2 2 Critical Parts Destroyed 10 | . . . 1 . . . . . . . . 6 3 Critical Strikes 22 | . . . 2 . . . . 1 . . 1 11 7 Destroy 20 | . . . 2 . . . . . . . 1 10 7 Blast 2 | . . . . . . . . 1 . . . 1 . Melee Attacks . | . . . . . . . . . . . . . . Impact . | . . . . . . . . . . . . . . Slashing . | . . . . . . . . . . . . . . Piercing . | . . . . . . . . . . . . . . Sneak Attacks . | . . . . . . . . . . . . . . Combat Hostiles . | . . . . . . . . . . . . . . Follow-up Attacks . | . . . . . . . . . . . . . . Damage Inflicted 18558 | . 1046 . 1904 930 2182 1109 1443 1546 519 . 1303 4762 1814 Guns 13613 | . 1041 . 1893 930 2182 1109 820 823 305 . 404 3169 937 Cannons 2500 | . . . . . . . 228 718 214 . 899 213 228 Explosions 2313 | . . . . . . . 395 . . . . 1309 609 Melee . | . . . . . . . . . . . . . . Ramming 132 | . 5 . 11 . . . . 5 . . . 71 40 Kinetic 15328 | . 1041 . 1893 930 2182 1109 1048 1541 479 . 732 3382 991 Thermal 879 | . . . . . . . . . 40 . 571 94 174 Explosive 2183 | . . . . . . . 395 . . . . 1179 609 Electromagnetic 36 | . . . . . . . . . . . . 36 . Impact . | . . . . . . . . . . . . . . Slashing . | . . . . . . . . . . . . . . Piercing . | . . . . . . . . . . . . . . Highest Corruption 12 | . . . . . . . 4 4 4 . . 4 12 Average Corruption 4 | . . . . . . . 3 4 4 . . 3 4 Corruption Purged . | . . . . . . . . . . . . . . Corruption Blocked . | . . . . . . . . . . . . . . Effects 40 | . . . . . . . 8 1 14 . . 10 7 Message Errors 9 | . . . . . . . 4 . 3 . . 2 . Matter Fused 12 | . . . . . . . 3 . 5 . . 1 3 Heat Flow Errors 3 | . . . . . . . . . 2 . . 1 . Energy Discharges 4 | . . . . . . . 1 . 3 . . . . Parts Fused 1 | . . . . . . . . . . . . . 1 Data Loss (minor) 5 | . . . . . . . . 1 1 . . 3 . Data Loss (major) 3 | . . . . . . . . . . . . 1 2 Misfires 2 | . . . . . . . . . . . . 2 . Weapon Failures 1 | . . . . . . . . . . . . . 1 Overload Shots . | . . . . . . . . . . . . . . Overflow Damage 116 | . . . . . . . . 16 5 . 31 64 . Projectiles 57 | . . . . . . . . 16 5 . 31 5 . Explosions 59 | . . . . . . . . . . . . 59 . Melee . | . . . . . . . . . . . . . . Knockbacks 15 | . . . . . . . 2 5 1 . 5 2 . Impact 1 | . . . . . . . . . . . . 1 . Kinetic 13 | . . . . . . . 1 5 1 . 5 1 . Secondary 1 | . . . . . . . 1 . . . . . . Self-Inflicted Damage 297 | . . . . . . . 85 . . . . 212 . Shots 16 | . . . . . . . 3 . . . . 13 . Rammed . | . . . . . . . . . . . . . . Targets Rammed 12 | . 1 . 1 . . . . 1 . . . 6 3 Kicked 12 | . 1 . 1 . . . . 1 . . . 6 3 Crushed . | . . . . . . . . . . . . . . Highest Temperature 327 | . 66 . 74 280 114 327 27 36 136 . 24 156 60 Average Temperature 39 | . 22 . 18 81 37 118 16 14 28 . 5 15 15 Received Heat Transfer 2235 | . 306 . 594 153 219 303 252 . . . 90 75 243 Siege Activations . | . . . . . . . . . . . . . . Robots Corrupted . | . . . . . . . . . . . . . . Combat Hostiles . | . . . . . . . . . . . . . . Parts Fried . | . . . . . . . . . . . . . . Impact Corruptions . | . . . . . . . . . . . . . . Robots Melted . | . . . . . . . . . . . . . . Combat Hostiles . | . . . . . . . . . . . . . . Parts Melted 1 | . . . . . . . . . . . . . 1 Heat Transferred 50 | . . . . . . . . . . . . 50 . Parts Sabotaged . | . . . . . . . . . . . . . . Parts Stolen . | . . . . . . . . . . . . . . Parts Stripped . | . . . . . . . . . . . . . . Power Chain Reactions . | . . . . . . . . . . . . . . Missiles Intercepted . | . . . . . . . . . . . . . . Alert | -11 -10 -10 -9 -8 -7 -7 -7 -7 -6 -6 -6 -5 -5 ------- Run | Jun Mat Min Mat Mat Fac Low Low Dat Pro Fac DSF Fac Ext Peak Influence 605 | . 140 38 331 180 281 . . . . 333 436 605 523 Initial 333 | . . 38 10 8 59 . . . . 333 179 169 217 Average 152 | . 62 38 102 56 119 . . . . 333 296 288 301 Maximum Alert Level 2 | . . . 1 . 1 . . . . 1 2 2 2 Low Security (%) 67 | 100 100 100 78 100 87 . . . . . 12 29 9 Level 1 27 | . . . 21 . 12 . . . . 100 76 51 73 Level 2 4 | . . . . . . . . . . . 11 19 17 Level 3 . | . . . . . . . . . . . . . . Level 4 . | . . . . . . . . . . . . . . Level 5 . | . . . . . . . . . . . . . . High Security . | . . . . . . . . . . . . . . Max Security . | . . . . . . . . . . . . . . Sterilizations 1 | . . . . . . . . . . . 1 . . Squads Dispatched 29 | . 5 . 2 1 5 . 1 . . . 2 10 3 Investigation 17 | . 5 . 1 1 4 . . . . . . 3 3 Extermination 3 | . . . . . 1 . . . . . . 2 . Reinforcement 6 | . . . 1 . . . . . . . 2 3 . Assault 1 | . . . . . . . 1 . . . . . . Garrison . | . . . . . . . . . . . . . . Intercept 2 | . . . . . . . . . . . . 2 . Searches Triggered . | . . . . . . . . . . . . . . Construction Impeded 2 | . . . . . . . . . . . . 2 . Haulers Reinforced . | . . . . . . . . . . . . . . Active Scanning Responses . | . . . . . . . . . . . . . . Cargo Convoy Interrupts . | . . . . . . . . . . . . . . Stealth | -11 -10 -10 -9 -8 -7 -7 -7 -7 -6 -6 -6 -5 -5 --------- Run | Jun Mat Min Mat Mat Fac Low Low Dat Pro Fac DSF Fac Ext Distress Signals 4 | . . . . 1 1 . . . . . . 1 1 Communications Jammed . | . . . . . . . . . . . . . . Distress Signals . | . . . . . . . . . . . . . . Times Spotted 179 | . 20 . 30 12 26 6 12 4 8 . 11 34 16 Peak Tracking Total 8 | . 3 . 5 4 3 5 8 2 3 . 3 4 8 Tactical Retreats 6 | . 2 . 1 . . . . . . . . 3 . Traps | -11 -10 -10 -9 -8 -7 -7 -7 -7 -6 -6 -6 -5 -5 ------- Run | Jun Mat Min Mat Mat Fac Low Low Dat Pro Fac DSF Fac Ext Traps Triggered 8 | . 3 . . . 1 . . . . . 1 1 2 Indirectly . | . . . . . . . . . . . . . . Trap Hack Attempts . | . . . . . . . . . . . . . . Triggered . | . . . . . . . . . . . . . . Disarmed 3 | . . . . 3 . . . . . . . . . Reprogrammed 6 | . . . 6 . . . . . . . . . . Reused . | . . . . . . . . . . . . . . Traps Extracted . | . . . . . . . . . . . . . . Installed . | . . . . . . . . . . . . . . Triggered 2 | . . . . . . . . . 2 . . . . Machines | -11 -10 -10 -9 -8 -7 -7 -7 -7 -6 -6 -6 -5 -5 ---------- Run | Jun Mat Min Mat Mat Fac Low Low Dat Pro Fac DSF Fac Ext Machines Disabled 35 | . . . . 1 1 . 1 . . . 1 29 2 Max in Single Turn 7 | . . . . 1 . . 1 . . . 1 7 2 Garrison Access 1 | . . . . . 1 . . . . . . . . Energy Cycler 1 | . . . . . . . . . . . . . 1 Machines Repaired . | . . . . . . . . . . . . . . Machines Sabotaged . | . . . . . . . . . . . . . . Overloaded Fab Kills . | . . . . . . . . . . . . . . Hacking | -11 -10 -10 -9 -8 -7 -7 -7 -7 -6 -6 -6 -5 -5 --------- Run | Jun Mat Min Mat Mat Fac Low Low Dat Pro Fac DSF Fac Ext Machines Accessed 36 | . 8 . 5 3 8 . . . . 1 . 5 6 Terminals 29 | . 7 . 5 3 3 . . . . 1 . 4 6 Fabricators 2 | . . . . . 2 . . . . . . . . Repair Stations 2 | . 1 . . . . . . . . . . 1 . Recycling Units . | . . . . . . . . . . . . . . Scanalyzers 1 | . . . . . 1 . . . . . . . . Garrison Access 2 | . . . . . 2 . . . . . . . . Total Hacks 122 | . 29 . 15 10 27 . . . . 1 . 19 21 Successful 74 | . 21 . 11 6 15 . . . . 1 . 9 11 Failed 48 | . 8 . 4 4 12 . . . . . . 10 10 Catastrophic 4 | . 2 . . . 1 . . . . . . 1 . Database Lockouts . | . . . . . . . . . . . . . . Manual . | . . . . . . . . . . . . . . Terminals 96 | . 22 . 15 10 11 . . . . 1 . 16 21 Fabricators 9 | . . . . . 9 . . . . . . . . Repair Stations 10 | . 7 . . . . . . . . . . 3 . Recycling Units . | . . . . . . . . . . . . . . Scanalyzers 3 | . . . . . 3 . . . . . . . . Garrison Access 4 | . . . . . 4 . . . . . . . . Terminal Hacks 56 | . 14 . 11 6 5 . . . . 1 . 8 11 Record 7 | . 1 . 2 . 2 . . . . . . . 2 Part Schematic 1 | . . . . . 1 . . . . . . . . Robot Analysis 1 | . 1 . . . . . . . . . . . . Prototype ID Bank 3 | . 2 . 1 . . . . . . . . . . Open Door 2 | . . . . . . . . . . . . . 2 Open DSF 2 | . . . . . 1 . . . . 1 . . . Level Access Points 2 | . . . . . . . . . . . . 1 1 Branch Access Points 1 | . . . . . . . . . . . . 1 . Terminal Index 2 | . . . 1 . . . . . . . . . 1 Scanalyzer Index 1 | . 1 . . . . . . . . . . . . Alert Level 6 | . 1 . 2 1 1 . . . . . . 1 . Locate Traps 10 | . 4 . 1 2 . . . . . . . 2 1 Disarm Traps 1 | . . . . 1 . . . . . . . . . Reprogram Traps 1 | . . . 1 . . . . . . . . . . Dispatch Records 2 | . 1 . 1 . . . . . . . . . . Maintenance Status 2 | . 1 . 1 . . . . . . . . . . Patrol Status 2 | . . . . . . . . . . . . 1 1 Transport Status 1 | . . . . . . . . . . . . . 1 Hauler Manifests 4 | . 1 . . 1 . . . . . . . 1 1 Zone Layout 5 | . 1 . 1 1 . . . . . . . 1 1 Fabricator Hacks 6 | . . . . . 6 . . . . . . . . Load Schematic 3 | . . . . . 3 . . . . . . . . Build 3 | . . . . . 3 . . . . . . . . Repair Station Hacks 8 | . 7 . . . . . . . . . . 1 . Scan Component 5 | . 4 . . . . . . . . . . 1 . Repair 3 | . 3 . . . . . . . . . . . . Recycling Unit Hacks . | . . . . . . . . . . . . . . Scanalyzer 3 | . . . . . 3 . . . . . . . . Insert Component 2 | . . . . . 2 . . . . . . . . Analyze 1 | . . . . . 1 . . . . . . . . Garrison Access Hacks 1 | . . . . . 1 . . . . . . . . Seal Access 1 | . . . . . 1 . . . . . . . . Unauthorized Hacks . | . . . . . . . . . . . . . . Terminals . | . . . . . . . . . . . . . . Fabricators . | . . . . . . . . . . . . . . Repair Stations . | . . . . . . . . . . . . . . Recycling Units . | . . . . . . . . . . . . . . Scanalyzers . | . . . . . . . . . . . . . . Garrison Access . | . . . . . . . . . . . . . . Data Cores Recovered 1 | . . . . . . . . . . . . 1 . Used 1 | . . . . . . . . . . . . 1 . Hacking Detections 26 | . 7 . 4 1 5 . . . . . . 4 5 Full Trace Events 18 | . 6 . 2 1 4 . . . . . . 3 2 Feedback Events . | . . . . . . . . . . . . . . Feedback Blocked . | . . . . . . . . . . . . . . Robot Schematics Acquired . | . . . . . . . . . . . . . . Robots Built . | . . . . . . . . . . . . . . Authchips . | . . . . . . . . . . . . . . Time . | . . . . . . . . . . . . . . Total Robot Build Rating . | . . . . . . . . . . . . . . Part Schematics Acquired 2 | . . . . . 2 . . . . . . . . Parts Built 6 | . . . . . 6 . . . . . . . . Authchips . | . . . . . . . . . . . . . . Time 182 | . . . . . 182 . . . . . . . . Total Part Build Rating 18 | . . . . . 18 . . . . . . . . Parts Repaired 3 | . 3 . . . . . . . . . . . . Time 78 | . 78 . . . . . . . . . . . . Parts Recycled . | . . . . . . . . . . . . . . Recycled Matter . | . . . . . . . . . . . . . . Retrieved Matter . | . . . . . . . . . . . . . . Retrieved Components . | . . . . . . . . . . . . . . Parts Scanalyzed 1 | . . . . . 1 . . . . . . . . Part Schematics Acquired 1 | . . . . . 1 . . . . . . . . Parts Damaged . | . . . . . . . . . . . . . . Bothacking | -11 -10 -10 -9 -8 -7 -7 -7 -7 -6 -6 -6 -5 -5 ------------ Run | Jun Mat Min Mat Mat Fac Low Low Dat Pro Fac DSF Fac Ext Used RIF Installer . | . . . . . . . . . . . . . . Robots Hacked . | . . . . . . . . . . . . . . Non-combat . | . . . . . . . . . . . . . . Combat . | . . . . . . . . . . . . . . Robot Hacks Applied . | . . . . . . . . . . . . . . Relay Couplers Released . | . . . . . . . . . . . . . . Fabnet Peak Effective % . | . . . . . . . . . . . . . . Robots Rewired . | . . . . . . . . . . . . . . Allies Hacked . | . . . . . . . . . . . . . . Hacks Repelled . | . . . . . . . . . . . . . . Allies | -11 -10 -10 -9 -8 -7 -7 -7 -7 -6 -6 -6 -5 -5 -------- Run | Jun Mat Min Mat Mat Fac Low Low Dat Pro Fac DSF Fac Ext Total Allies 7 | . . . . . 3 . . . . . . . 4 Largest Group 3 | . . . . . 3 3 . . . . . . 3 Highest-Rated Group 215 | . . . . . 93 93 . . . . . . 215 Highest-Rated Ally 159 | . . . . . 31 31 . . . . . . 159 Total Orders . | . . . . . . . . . . . . . . Ally Attacks 63 | . . . . . 36 5 . . . . . . 22 Total Damage 1132 | . . . . . 445 117 . . . . . . 570 Kills 5 | . . . . . 3 . . . . . . . 2 Allies Corrupted . | . . . . . . . . . . . . . . Allies Melted . | . . . . . . . . . . . . . . Intel | -11 -10 -10 -9 -8 -7 -7 -7 -7 -6 -6 -6 -5 -5 ------- Run | Jun Mat Min Mat Mat Fac Low Low Dat Pro Fac DSF Fac Ext Robot Analysis Total 132 | . 1 . . . . . . 131 . . . . . Derelict Logs Recovered 1 | . . . . . . 1 . . . . . . . Drone Launches . | . . . . . . . . . . . . . . Drone Recoveries . | . . . . . . . . . . . . . . Exploration | -11 -10 -10 -9 -8 -7 -7 -7 -7 -6 -6 -6 -5 -5 ------------- Run | Jun Mat Min Mat Mat Fac Low Low Dat Pro Fac DSF Fac Ext Turns Passed 10048 | 71 1596 228 1739 636 1142 666 449 177 792 287 365 1457 443 Spaces Moved 4943 | 53 677 38 644 250 599 455 298 87 401 151 197 894 199 Core 11 | 11 . . . . . . . . . . . . . Treads . | . . . . . . . . . . . . . . Legs 4932 | 42 677 38 644 250 599 455 298 87 401 151 197 894 199 Wheels . | . . . . . . . . . . . . . . Hover . | . . . . . . . . . . . . . . Flight . | . . . . . . . . . . . . . . Fastest Speed 50 | 50 190 190 190 195 115 127 127 127 127 190 130 130 130 Average Speed 158 | 105 190 190 201 215 127 127 127 127 187 190 138 130 131 Slowest Speed 400 | 120 190 190 260 270 196 127 127 127 196 190 400 130 200 Overloaded Moves . | . . . . . . . . . . . . . . Propulsion Burnouts . | . . . . . . . . . . . . . . Robots Hopped . | . . . . . . . . . . . . . . Cave-ins Triggered 1 | . . . . . . . . . . . . . 1 Exploration Rate (%) 43 | 4 95 13 68 27 14 58 55 64 50 6 93 27 37 Regions Visited 13 Branch Regions 6 Pre-discovered Areas 27 | . . . . . . . . 27 . . . . . Known Exits Taken 12 | 1 1 1 1 1 1 1 1 1 1 1 . 1 . Unknown Exits Taken . | . . . . . . . . . . . . . . Scrap Searched 6 | . . . . . . 2 3 . 1 . . . . Spaces Dug . | . . . . . . . . . . . . . . Terrain Destroyed 262 | . . . . . . . 21 3 5 . 3 195 35 Melee . | . . . . . . . . . . . . . . Projectile 37 | . . . . . . . 1 3 5 . 3 14 11 AOE 225 | . . . . . . . 20 . . . . 181 24 Terrain Rammed . | . . . . . . . . . . . . . . Walls Destroyed . | . . . . . . . . . . . . . . Machines Disabled . | . . . . . . . . . . . . . . Actions | -11 -10 -10 -9 -8 -7 -7 -7 -7 -6 -6 -6 -5 -5 --------- Run | Jun Mat Min Mat Mat Fac Low Low Dat Pro Fac DSF Fac Ext Total 6242 | 64 874 194 880 286 864 490 324 110 416 152 239 1015 334 Wait 676 | . 128 157 89 3 176 4 . . . . 15 7 97 Move 4930 | 52 676 37 643 249 598 454 297 86 400 150 196 893 199 Hop . | . . . . . . . . . . . . . . Pick Up 37 | 5 2 . 4 1 6 3 . 4 . . 2 10 . Fast Attach 16 | 7 3 . 2 . 1 . 1 . 1 . 1 . . Attach 40 | . 1 . 4 3 4 2 5 1 1 2 1 7 9 Detach 1 | . . . . . . . 1 . . . . . . Swap 51 | . 2 . 13 3 15 1 1 . 2 . 4 9 1 Drop 40 | . . . 8 1 15 3 . . 1 . 2 9 1 Fire 434 | . 61 . 116 26 49 23 19 18 11 . 18 74 19 Melee . | . . . . . . . . . . . . . . Ram . | . . . . . . . . . . . . . . Kick 12 | . 1 . 1 . . . . 1 . . . 6 3 Crush . | . . . . . . . . . . . . . . Escape Stasis 5 | . . . . . . . . . . . . . 5 Rewire . | . . . . . . . . . . . . . . Trap . | . . . . . . . . . . . . . . Miscellaneous . | . . . . . . . . . . . . . . Route ------- -11/Junkyard -10/Materials (discovered 4 exits: *Mat x3 / *Min) -10/Mines -9/Materials (discovered 3 exits: *Mat x2 / *Min) -8/Materials -7/Factory -7/Lower Caves -7/Lower Caves -7/Data Miner -6/Proximity Caves -6/Factory -6/DSF -5/Factory (discovered 8 exits: Fac x4 / Upp x2 / *Ext x2) -5/Extension (discovered 2 exits: Fac x2) History --------- Turn | Location | Event 3 | -11/Junkyard | Identified exit to Materials 3 | -11/Junkyard | Discovered exit to Materials (range 15) 72 | -11/Junkyard | Entered Materials 72 | -10/Materials | Evolved 1 slot: Power x1 302 | -10/Materials | Build established: Hacker-Mutant 455 | -10/Materials | Identified exit to Materials 455 | -10/Materials | Discovered exit to Materials (range 14) 795 | -10/Materials | Discovered exit to Materials (range 15) 797 | -10/Materials | Identified exit to Mines 797 | -10/Materials | Discovered exit to Mines (range 10) 869 | -10/Materials | Discovered exit to Materials (range 10) 1091 | -10/Materials | Repaired Assault Rifle 1119 | -10/Materials | Repaired Aluminum Leg 1146 | -10/Materials | Repaired Ion Engine 1668 | -10/Materials | Entered Mines 1687 | -10/Mines | Discovered exit to Materials (range 7) 1896 | -10/Mines | Entered Materials 1896 | -9/Materials | Evolved 2 slots: Utility x2 2411 | -9/Materials | Identified exit to Materials 2411 | -9/Materials | Discovered exit to Materials (range 16) 3079 | -9/Materials | Identified exit to Mines 3079 | -9/Materials | Discovered exit to Mines (range 7) 3586 | -9/Materials | Discovered exit to Materials (range 16) 3635 | -9/Materials | Entered another Materials area 3635 | -8/Materials | Evolved 2 slots: Weapon x2 3921 | -8/Materials | Build established: Hacker-Skirmisher 4242 | -8/Materials | Identified exit to Factory 4242 | -8/Materials | Discovered exit to Factory (range 15) 4271 | -8/Materials | Entered Factory 4271 | -7/Factory | Evolved 2 slots: Propulsion x2 5027 | -7/Factory | Fabricated Titanium Leg (x2) 5099 | -7/Factory | Identified exit to Lower Caves 5099 | -7/Factory | Discovered exit to Lower Caves (range 9) 5240 | -7/Factory | Allied Derelicts emerged from ambush trap array 5305 | -7/Factory | Fabricated Titanium Leg (x2) 5384 | -7/Factory | Fabricated Titanium Leg (x2) 5413 | -7/Factory | Entered Lower Caves 5413 | -7/Lower Caves | Accompanied by 3 allies 5463 | -7/Lower Caves | Learned Factory security intel 5699 | -7/Lower Caves | Spotted B-75 Beast 5721 | -7/Lower Caves | Destroyed B-75 Beast 6047 | -7/Lower Caves | Identified exit to Lower Caves 6047 | -7/Lower Caves | Discovered exit to Lower Caves (range 13) 6079 | -7/Lower Caves | Entered another Lower Caves area 6102 | -7/Lower Caves | Attracted the attention of an 0b10 outpost 6156 | -7/Lower Caves | Destroyed 8 combat bots 6181 | -7/Lower Caves | Lost 5 parts (1p1u3w) 6513 | -7/Lower Caves | Identified exit to Data Miner 6513 | -7/Lower Caves | Discovered exit to Data Miner (range 7) 6528 | -7/Lower Caves | Entered Data Miner 6528 | -7/Data Miner | Identified exit to Proximity Caves 6528 | -7/Data Miner | Discovered exit to Proximity Caves (range 6) 6553 | -7/Data Miner | Met Data Miner 6570 | -7/Data Miner | Interfaced with the Data Conduit 6582 | -7/Data Miner | Build established: Hacker-Tank 6679 | -7/Data Miner | Found Exp. Thermal Shield 6705 | -7/Data Miner | Entered Proximity Caves 6775 | -6/Proximity Caves | Spotter reported a threat 6867 | -6/Proximity Caves | Spotter reported a threat 7057 | -6/Proximity Caves | Spotted B-75 Beast 7218 | -6/Proximity Caves | Build established: Scavenger-Tank 7478 | -6/Proximity Caves | Identified exit to Factory 7478 | -6/Proximity Caves | Discovered exit to Factory (range 3) 7497 | -6/Proximity Caves | Entered Factory 7497 | -6/Factory | Evolved 2 slots: Utility x2 7499 | -6/Factory | Loaded intel: 190 machine locations 7783 | -6/Factory | Identified exit to DSF 7784 | -6/Factory | Entered DSF 7785 | -6/DSF | Loaded intel: 3 machine locations 7812 | -6/DSF | Additional patrols routed to DSF 7878 | -6/DSF | Identified exit to Factory 7878 | -6/DSF | Discovered exit to Factory (range 15) 8115 | -6/DSF | Sterilization system engaged 8135 | -6/DSF | Ambient heat levels rising (+10) 8149 | -6/DSF | Entered Factory 8149 | -5/Factory | Evolved 2 slots: Power x1, Utility x1 8150 | -5/Factory | Loaded intel: 310 machine locations 8773 | -5/Factory | Intercept squad dispatched 8811 | -5/Factory | Spotted Tracker 8846 | -5/Factory | Destroyed Tracker 8864 | -5/Factory | Found Exp. Phase Shifter 8874 | -5/Factory | Spotted Combat Programmer 8895 | -5/Factory | Destroyed Combat Programmer 8909 | -5/Factory | Lost 3 parts (1u2w) 9213 | -5/Factory | Spotted B-75 Beast 9241 | -5/Factory | Destroyed B-75 Beast 9561 | -5/Factory | Identified exit to Upper Caves 9561 | -5/Factory | Identified exit to Extension 9561 | -5/Factory | Identified exit to Factory 9606 | -5/Factory | Entered Extension 9607 | -5/Extension | Loaded intel: 33 machine locations 9762 | -5/Extension | Rescued a captive Derelict 9785 | -5/Extension | Rescued A7 9878 | -5/Extension | Build established: Hacker-Tank 9923 | -5/Extension | Energy Cycler disabled 9924 | -5/Extension | Rescued a captive Derelict 9924 | -5/Extension | Rescued a captive Derelict 9925 | -5/Extension | Rescued a captive Derelict 9925 | -5/Extension | Rescued a captive Derelict 9926 | -5/Extension | Rescued a captive Derelict 9928 | -5/Extension | Rescued a captive Derelict 9931 | -5/Extension | Rescued a captive Derelict 9934 | -5/Extension | Rescued a captive Derelict 9983 | -5/Extension | Spotted B-75 Beast 9991 | -5/Extension | Spotted B-75 Beast 10000 | -5/Extension | Crushed by falling debris 10009 | -5/Extension | Extracted ID and sensor layout for unrecognized location from A7's data core 10032 | -5/Extension | Core integrity fell below 50% 10033 | -5/Extension | System corruption reached 10% 10044 | -5/Extension | Destroyed B-75 Beast 10049 | -5/Extension | Self-destructed Last Messages --------------- 10040_ Penetrated by Slug. 10040_ HV Slug penetrates B-75 Beast. 10040_ B-75 Beast suffers critical hit (Destroy). 10040_ Destroyed Dynamic Insulation System. 10040_ HV Slug penetrates B-75 Beast. 10040_ HV Slug penetrates Wall. 10041_ Penetrated by Slug. 10042_ Hyp. Gauss Cannon destroyed. 10043_ U-05 Engineer builds a Wall. 10043_ Penetrated by Slug. 10043_ Lrg. Matter Pod destroyed. 10044_ HV Slug penetrates B-75 Beast. 10044_ B-75 Beast destroyed. 10044_ Hyp. Coil Gun destroyed. 10045_ Slug penetrates Wall. 10046_ Penetrated by Slug. 10046_ Slug penetrates Wall. 10046_ Slug penetrates H-66 Slayer. 10048_ U-05 Engineer builds a Wall. 10048_ Neutron Cannon blasted off. Map ----- +----------------------------------------------------+ | #??????????????# #????????????????????????? | | ##???????????### #????????????????????????? | | #############"" ####?????????????????????? | | T ^^^#?????????????????????? | | #############"" ^^#?????????????????????? | | ##??????#### #"" ##????????????????????? | | #########! [= "#????????????????????? | | +!="T " #?????????????????????? | | ########## " * #?????????????????????? | | ?????????# ]!= " =%! #?????????????????????? | | ?????????# !!= """""## #?????????????????????? | | ?????????# != !## ## # #?????????????????????? | | ?????????##" "######?## #?????????????????????? | | ??????????#"T"#???????# #?????????????????????? | | ??????????#"""#???????#### #?????????????????????? | | ??????????#####??????###%# #?????????????????????? | | ?????????????????????# =%# ##????????????????????? | | ?????????????????????# /%%%##????????????????????? | | ?????????????????????###T#!#?##??????????????????? | | ?????????????????????#####!#? #??????????????????? | | ????????????????????## ##*## #??????????????????? | | ????????????????????# ==#!#% ##?????????????????? | | ??????????????????????#!!#u##=;##????????????????? | | ???????????????????????#!#%%%]=;# ;## #??????????? | | ?????????????????????# #!*!%%=! " "?????????? | | ?????????????????????# ![@=[!=!! " #????????? | | ?????????????????????##%[|%!%*%*= #????????? | | ?????????????????????# ]==[==== h h #????????? | | ?????????????????????# w p #????????? | | ???????????????????? h p %" ???????? | | ??????????????????? % BB "% ???????? | | ?????????????????? % BB h "%????????? | | ????????????????? % "????????? | | ???????????????? uk % ?????????? | | ???????????????######## ?????????? | | ?????????????????????? ???????????? | | ??????????????????????## ????????????? | | ???????????????????????# ??????????????? | | ???????????????????????# ????????????????? | | ????????????????????????##;##T?"""???????????????? | | ??????????????????????????#?????